Cogmind - Beta 15 @@@ ROGUE MODE // 2025.05.06 @ 17:26:10 Player: ktur Result: Destroyed by Executioner with Helical Railgun Performance ------------- Evolutions (7) 3500 Regions Visited (10) 2000 Robots Destroyed (74) 370 Value Destroyed (3021) 3021 Prototype IDs (110) 2200 Alien Tech Used (2) 400 Bonus (3839) 3839 TOTAL SCORE: 15330 Bonus ------- Follower Combat Kills 446 Delivered SUBCON Basin 2000 Registered with UFD 300 Met Optimus in HQ 500 Met Optimus at Protoforge 1000 Friendly Fire -407 Cogmind --------- Core Integrity 0/1300 Matter 213/300 Energy 1400/1400 System Corruption 20% Temperature Cool (0) Movement Walking (86) Location -3/Protoforge Parts ------- > --- POWER (2) -------- Hybrid Graviton Reactor (fused) > --- PROPULSION (6) --- Enhanced Biometal Leg Experimental VSS Leg Experimental VSS Leg > --- UTILITY (11) ----- Experimental Optical Array Experimental Signal Interpreter Experimental Targeting Computer Experimental Core Analyzer Centrium Light Armor Plating Concept Network Penetrator Concept Network Penetrator Tech Extrapolator > --- WEAPON (2) ------- Improved KE Penetrator Railgun > --- INVENTORY (5) ---- Advanced Micro-nuke Launcher Peak State ------------ > --- POWER ------------ Hybrid Graviton Reactor > --- PROPULSION ------- Experimental VSS Leg Nuclear Pulse Array Impulse Thruster Array Experimental Surge Thruster > --- UTILITY ---------- Experimental Optical Array Long-range Sensor Array Experimental Signal Interpreter Experimental Salvage Targeting Computer Experimental Core Analyzer Experimental Armor Integrity Analyzer Concept Core Shell Centrium Medium Armor Plating Concept Network Penetrator Concept Network Penetrator Tech Extrapolator > --- WEAPON ----------- Concept XC Strikerail Concept XC Strikerail > --- INVENTORY -------- Improved Quantum Reactor Advanced Reaction Control System Advanced Micro-nuke Launcher CPS Tube CPS Tube [Rating: 193] Favorites ----------- Power Subdweller Power Source Engine Subdweller Power Source Power Core Improved Fusion Compressor Reactor Light Antimatter Reactor Propulsion Spiked Treads Treads Spiked Treads Leg Experimental VSS Leg Wheel Wheel Hover Unit Combat Antigrav System Flight Unit Impulse Thruster Utility Large Storage Unit Device Advanced Sensor Array Storage Large Storage Unit Processor Tech Extrapolator Hackware Concept Network Penetrator Protection Gun Armor Weapon Assault Rifle Energy Gun Small Laser Energy Cannon Subdweller Beam Cannon Ballistic Gun Assault Rifle Ballistic Cannon Advanced Assault Cannon Launcher Subdweller Shrapnel Launcher Special Weapon Mining Laser Slashing Weapon Power Sword Special Melee Weapon Advanced Datajack Build | -11 -10 -10 -7 -7 -5 -4 -4 -3 -3 -3 ------- Run | Yrd Mat Sub Rec Scr Fac Fac Ext Res Qua Frg Slots Evolved 14 | . . . . . 10 2 . 2 . . Power 1 | . . . . . . 1 . . . . Propulsion 4 | . . . . . 2 . . 2 . . Utility 9 | . . . . . 8 1 . . . . Weapon . | . . . . . . . . . . . Parts Attached 128 | 7 4 19 . 3 11 6 8 25 8 37 Power 13 | 1 . 2 . . . 1 2 1 4 2 Engine 4 | 1 . 2 . . . . . 1 . . Core 1 | . . . . . . . . . 1 . Reactor 8 | . . . . . . 1 2 . 3 2 Propulsion 29 | 2 . 5 . 1 2 2 . 9 . 8 Treads 7 | 2 . 2 . . . 2 . 1 . . Leg 6 | . . . . . 1 . . . . 5 Wheel 5 | . . 3 . 1 1 . . . . . Hover 1 | . . . . . . . . 1 . . Flight 10 | . . . . . . . . 7 . 3 Utility 55 | 2 2 2 . . 8 3 4 13 4 17 Device 15 | 1 . . . . 2 2 2 5 1 2 Storage 4 | 1 2 . . . . . . . . 1 Processor 18 | . . . . . 6 1 . 3 1 7 Hackware 9 | . . . . . . . 2 4 1 2 Protection 9 | . . 2 . . . . . 1 1 5 Artifact . | . . . . . . . . . . . Weapon 31 | 2 2 10 . 2 1 . 2 2 . 10 Energy Gun 3 | 2 . . . . . . . . . 1 Energy Cannon 2 | . . 1 . . . . . . . 1 Ballistic Gun 10 | . 2 4 . . . . . . . 4 Ballistic Cannon 3 | . . 1 . 2 . . . . . . Launcher 5 | . . 3 . . . . 1 . . 1 Special Weapon 2 | . . 1 . . . . . . . 1 Impact Weapon . | . . . . . . . . . . . Slashing Weapon 5 | . . . . . 1 . . 2 . 2 Piercing Weapon . | . . . . . . . . . . . Special Melee Weapon 1 | . . . . . . . 1 . . . Unidentified Prototypes 27 | . . . . . . . . 3 4 20 Parts Lost 46 | . . 4 . . . . 11 11 . 20 Power 3 | . . . . . . . 1 . . 2 Propulsion 12 | . . 3 . . . . 4 2 . 3 Utility 23 | . . 1 . . . . 3 7 . 12 Weapon 8 | . . . . . . . 3 2 . 3 Highest Loss Streak 11 | . . 2 . . . . 11 8 . 7 To Critical Strikes 2 | . . . . . . . 1 . . 1 Average Backups 9 | 2 8 13 . 9 9 11 11 3 4 3 Power . | . 1 . . . . . . . . . Propulsion . | 1 2 1 . . . . . . . . Utility 3 | . 1 2 . 6 4 4 4 . . . Weapon 3 | . 3 8 . 2 1 2 1 . 1 1 Tool/Special . | . . . . . . . . . . . Unused Backups 26 | . . 13 . 4 1 . 5 1 1 1 Power . | . . . . . . . . . . . Propulsion 3 | . . 3 . . . . . . . . Utility 13 | . . 5 . 4 1 . 2 1 . . Weapon 6 | . . 4 . . . . 1 . 1 . Tool/Special 4 | . . 1 . . . . 2 . . 1 Average Slot Usage (%) 89 | . 98 99 88 94 76 93 98 53 81 72 Engine 7 | . 13 13 11 11 5 . . . 2 . Reactor 1 | . . . . . . 3 8 . 3 3 Treads 11 | . 26 20 11 11 5 10 13 . . . Leg 1 | . . . . . 1 . . . . 8 Wheel 4 | . . 6 . 8 5 6 3 . . . Flight 1 | . . . . . . . . 3 19 7 Device 4 | . 14 . . . 4 12 13 4 8 5 Storage 7 | . 14 13 11 8 5 4 4 . . . Processor 10 | . . . . . 23 28 28 25 20 22 Hackware 2 | . . . . . . . . 12 14 11 Protection 7 | . . 13 11 11 5 4 4 . 7 5 Energy Cannon 4 | . . 7 11 9 . . . . . 1 Ballistic Gun 12 | . 19 15 22 22 10 9 8 . . 2 Ballistic Cannon 2 | . . 2 . 2 9 4 4 . . . Launcher 2 | . . 1 11 9 . . . . . . Slashing Weapon 1 | . . . . . . 4 3 2 3 1 Peak Build Rating 193 | 7 8 39 38 29 76 95 102 111 134 193 Average Rating 53 | 5 7 14 34 24 57 90 98 63 121 141 On Entrance 48 | . 7 8 38 20 29 68 95 41 104 127 Naked Turns . | . . . . . . . . . . . Heaviest Build 73 | 14 30 49 49 49 45 56 73 17 31 64 Greatest Support 142 | 40 40 40 20 20 26 77 77 30 43 142 Greatest Overweight (x) 4 | . 2 2 2 4 4 2 1 1 . 1 Average Overweight (x) . | . . . 2 3 3 . . . . . Largest Inventory Capacity 25 | 8 15 15 15 15 15 15 15 5 5 25 Average Capacity 12 | 7 11 15 15 12 15 15 14 5 5 7 Most Carried 23 | 5 15 15 15 15 15 15 15 5 5 23 Average Carried 11 | 2 8 14 12 11 13 14 14 4 4 6 Final Capacity 15 | 8 15 15 15 15 15 15 5 5 5 5 Final Carried 15 | 5 15 15 1 15 15 15 5 5 5 1 Class Distribution -------------------- 28% | Mutant 25% | Gunner 9% | Skirmisher 8% | Wizard-Mutant 7% | Scavenger-Mutant 5% | Hacker-Gladiator 5% | Assassin 3% | Derelict-Skirmisher 3% | Hacker-Mutant Dominant Class ---------------- Mutant | -10/Materials Mutant | -10/Subcaves Gunner | -7/Recycling Gunner | -7/Scraptown Derelict-Skirmisher | -5/Factory Assassin | -4/Factory Skirmisher | -4/Extension Hacker-Mutant | -3/Research Hacker-Sprinter | -3/Quarantine Wizard-Mutant | -3/Protoforge Resources | -11 -10 -10 -7 -7 -5 -4 -4 -3 -3 -3 ----------- Run | Yrd Mat Sub Rec Scr Fac Fac Ext Res Qua Frg Matter Collected 3030 | 249 40 534 . 217 160 42 404 261 198 925 Remotely . | . . . . . . . . . . . Salvage Created 2502 | 32 234 374 . . 160 106 290 245 198 863 Parts 153 | 4 14 37 . . 6 11 22 8 13 38 Haulers Intercepted 1 | . 1 . . . . . . . . . Recyclers Shooed 6 | 1 2 . . . 2 . 1 . . . Parts Field Recycled . | . . . . . . . . . . . Retrieved Matter . | . . . . . . . . . . . Parts Self-Destructed 15 | . . 15 . . . . . . . . Prevented . | . . . . . . . . . . . Kills | -11 -10 -10 -7 -7 -5 -4 -4 -3 -3 -3 ------- Run | Yrd Mat Sub Rec Scr Fac Fac Ext Res Qua Frg Combat Hostiles Destroyed 55 | . 6 17 . . . 2 4 3 2 21 Melee 3 | . . . . . . . 1 . 2 . Guns 24 | . 6 8 . . . . 2 . . 8 Cannons 7 | . . 3 . . . 1 1 . . 2 AOE 21 | . . 6 . . . 1 . 3 . 11 Classes Destroyed 18 | 1 3 2 . . 1 2 2 . . 7 Worker 2 | . . . . . . . 2 . . . Builder 5 | . . . . . . 1 3 1 . . Tunneler 2 | 2 . . . . . . . . . . Hauler 1 | . 1 . . . . . . . . . Recycler 2 | . . . . . 1 . . 1 . . Mechanic 1 | . . . . . . . . . . 1 Operator 3 | . . . . . . . 1 . 2 . Drone 4 | . . . . . . . . . . 4 Turret 2 | . . 2 . . . . . . . . Swarmer 18 | . 3 7 . . . . 1 3 . 4 Grunt 10 | . 3 . . . . . 3 . . 4 Brawler 1 | . . . . . . . . . . 1 Programmer 6 | . . . . . . 2 . . 2 2 Decapitator 4 | . . . . . . . . . . 4 Striker 1 | . . . . . . . . . . 1 Executioner 1 | . . . . . . . . . . 1 Subdweller 10 | . . 10 . . . . . . . . Scrapoid 1 | . . . . . . . . . . 1 Best Kill Streak 6 | 2 3 6 . . 1 3 4 3 2 6 Combat Bots Only 6 | . 3 4 . . . 2 2 3 2 6 Max Kills in Single Turn 4 | 1 2 2 . . 1 2 2 3 1 4 Gunslinging 1 | . 1 . . . . . . . . . Exploded 3 | . . 2 . . . 1 . 3 . 3 Melee 1 | . . . . . . . 1 . 1 . Uniques/NPCs Destroyed . | . . . . . . . . . . . Combat | -11 -10 -10 -7 -7 -5 -4 -4 -3 -3 -3 -------- Run | Yrd Mat Sub Rec Scr Fac Fac Ext Res Qua Frg Hostile Shots Fired 621 | . 26 80 . . . 18 121 110 24 242 Missed 212 | . 5 23 . . . 6 34 44 15 85 Hits 409 | . 21 57 . . . 12 87 66 9 157 Melee 13 | . . . . . . . . . . 13 Projectile 396 | . 21 57 . . . 12 87 66 9 144 AOE 3 | . . 1 . . . . . . . 2 Critical Strikes 33 | . . 1 . . . . 9 1 1 21 Actively Blocked 1 | . . . . . . . . . . 1 Part Disruptions 1 | . . . . . . . . . . 1 Damage Taken 9366 | . 238 985 . . . 295 1883 1485 114 4366 Core 1696 | . 12 112 . . . 29 345 638 . 560 Absorbed by Shields 431 | . . . . . . . 431 . . . Redirected to Shielding 332 | . . . . . . . . . . 332 Ignored by Resistances 46 | . . . . . . 46 . . . . Regen/Repaired (Parts) 276 | . 148 . . 82 . . . . 46 . Core Remaining (%) 79 | 100 . . . 50 100 . 67 . . . Volleys Fired 201 | 16 21 60 . . 26 3 22 1 . 52 Largest 3 | 2 2 2 . . 2 3 3 1 . 2 Hottest 127 | 90 90 110 . . 40 80 97 49 . 127 Shots Fired 334 | 32 42 91 . . 32 9 51 1 . 76 Gun 211 | 32 42 45 . . 12 6 26 . . 48 Cannon 78 | . . 20 . . 20 3 18 . . 17 Launcher 25 | . . 8 . . . . 7 1 . 9 Special 20 | . . 18 . . . . . . . 2 Kinetic 221 | . 20 68 . . 32 9 44 . . 48 Thermal 76 | 32 22 22 . . . . . . . . Explosive 18 | . . 1 . . . . 7 1 . 9 Electromagnetic 17 | . . . . . . . . . . 17 Robot Hit Streak 18 | 6 8 18 . . 8 3 8 1 . 11 Robot Miss Streak 4 | 4 3 3 . . 1 4 3 . . 3 Penetration Max 1 | . . . . . . . . . . 1 Secondary Targets 6 | . 3 1 . . . . . . . 2 Max Gunslinging Chain 1 | . 1 1 . . . . . . . 1 Shots Hit Robots 189 | 17 28 50 . . 9 4 33 4 4 40 Core Hits 140 | 2 10 31 . . 5 3 25 5 3 56 Critical Kills 2 | . . . . . . . . . . 2 Critical Parts Destroyed 1 | . 1 . . . . . . . . . Critical Strikes 8 | 2 2 1 . . . . . . . 3 Burn 3 | 2 1 . . . . . . . . . Destroy 3 | . 1 . . . . . . . . 2 Blast 1 | . . 1 . . . . . . . . Corrupt 1 | . . . . . . . . . . 1 Melee Attacks 86 | . . . . . . 7 11 22 23 23 Impact . | . . . . . . . . . . . Slashing 86 | . . . . . . 7 11 22 23 23 Piercing . | . . . . . . . . . . . Sneak Attacks 7 | . . . . . . . 3 3 1 . Combat Hostiles 2 | . . . . . . . 1 . 1 . Follow-up Attacks . | . . . . . . . . . . . Damage Inflicted 9333 | 202 385 1304 . . 108 292 1671 655 314 4402 Guns 2685 | 189 368 551 . . 108 44 240 . . 1185 Cannons 960 | . . 225 . . . 35 269 . . 431 Explosions 4677 | . . 528 . . . 213 811 359 . 2766 Melee 933 | . . . . . . . 351 268 314 . Ramming 78 | 13 17 . . . . . . 28 . 20 Kinetic 3240 | . 209 1150 . . 108 79 509 . . 1185 Thermal 586 | 189 159 25 . . . 213 . . . . Explosive 4065 | . . 129 . . . . 811 359 . 2766 Electromagnetic 431 | . . . . . . . . . . 431 Impact . | . . . . . . . . . . . Slashing 933 | . . . . . . . 351 268 314 . Piercing . | . . . . . . . . . . . Highest Corruption 20 | . . . . . . 1 1 1 3 20 Average Corruption 7 | . . . . . . 1 1 1 1 13 Corruption Purged . | . . . . . . . . . . . Corruption Blocked . | . . . . . . . . . . . Effects 69 | . . . . . . 3 5 . 6 55 Message Errors 21 | . . . . . . 2 1 . 3 15 Matter Fused 13 | . . . . . . . 2 . 2 9 Heat Flow Errors 4 | . . . . . . . . . . 4 Energy Discharges 6 | . . . . . . 1 . . . 5 Parts Rejected 3 | . . . . . . . . . . 3 Parts Fused 1 | . . . . . . . . . . 1 Data Loss (minor) 6 | . . . . . . . 1 . . 5 Data Loss (major) 8 | . . . . . . . 1 . 1 6 Alerts 1 | . . . . . . . . . . 1 Misdirections 6 | . . . . . . . . . . 6 Overload Shots . | . . . . . . . . . . . Overflow Damage 494 | . . 1 . . . 47 183 158 53 52 Projectiles . | . . . . . . . . . . . Explosions 207 | . . 1 . . . 47 69 38 . 52 Melee 287 | . . . . . . . 114 120 53 . Knockbacks 5 | . . 3 . . . . 2 . . . Impact . | . . . . . . . . . . . Kinetic 5 | . . 3 . . . . 2 . . . Secondary . | . . . . . . . . . . . Self-Inflicted Damage 195 | . . 82 . . . 88 . 13 . 12 Shots 3 | . . 2 . . . 1 . . . . Rammed 16 | 5 6 . . . . . . 5 . . Targets Rammed 18 | 5 6 . . . . . . 5 . 2 Kicked 2 | . . . . . . . . . . 2 Crushed . | . . . . . . . . . . . Highest Temperature 345 | 180 315 5 . . . 4 345 . 333 193 Average Temperature 117 | 84 132 5 . . . 4 132 . 179 103 Received Heat Transfer 1581 | . 111 150 . . . 9 853 105 . 353 Effects 4 | . . . . . . . 3 . 1 . Shutdowns 1 | . . . . . . . 1 . . . Interference 2 | . . . . . . . 2 . . . Short Circuit 1 | . . . . . . . . . 1 . Siege Activations . | . . . . . . . . . . . Martial Activations . | . . . . . . . . . . . Shielding Activations . | . . . . . . . . . . . Robots Disrupted . | . . . . . . . . . . . Combat Hostiles . | . . . . . . . . . . . Robots Corrupted . | . . . . . . . . . . . Combat Hostiles . | . . . . . . . . . . . Parts Fried 2 | . . . . . . . . . . 2 Impact Corruptions 2 | . . . . . . . . 2 . . Robots Melted . | . . . . . . . . . . . Combat Hostiles . | . . . . . . . . . . . Parts Melted 2 | 1 1 . . . . . . . . . Heat Transferred 1264 | 632 495 37 . . . 100 . . . . Parts Sabotaged . | . . . . . . . . . . . Parts Stolen . | . . . . . . . . . . . Parts Stripped . | . . . . . . . . . . . Power Chain Reactions . | . . . . . . . . . . . Alert | -11 -10 -10 -7 -7 -5 -4 -4 -3 -3 -3 ------- Run | Yrd Mat Sub Rec Scr Fac Fac Ext Res Qua Frg Maximum Alert Level 1 | . . . . . . . . . . 1 Low Security (%) 97 | 100 100 . 100 . 100 100 100 100 100 90 Level 1 2 | . . . . . . . . . . 9 Level 2 . | . . . . . . . . . . . Level 3 . | . . . . . . . . . . . Level 4 . | . . . . . . . . . . . Level 5 . | . . . . . . . . . . . High Security . | . . . . . . . . . . . Max Security . | . . . . . . . . . . . Peak Influence 364 | 5 95 . 63 . 5 147 161 173 166 364 Initial 63 | . . . 63 . . . 36 52 56 . Average 66 | . 27 . 26 . . 38 48 104 70 129 Influence Increases 3133 | 10 219 220 . . 19 199 694 476 274 1022 Destroy 0b10 Robot/C 1060 | . 120 180 . . . 40 280 60 40 340 Destroy 0b10 Robot/NC 120 | 10 5 . . . 5 5 50 10 10 25 Destroy Leader 126 | . 22 10 . . . 10 34 . 20 30 Allied During Kill 84 | . . . . . . . 84 . . . Trap Triggered on 0b10 20 | . . . . . . 10 . 10 . . Successful Hack 235 | . 27 . . . . 9 31 73 56 39 Disable Machine 315 | . . . . . . 45 15 15 45 195 Destroy Structure 348 | . . . . . 14 80 110 68 28 48 Partial Spotted 90 | . . . . . . . . 15 . 75 Lose Combat Pursuer 735 | . 45 30 . . . . 90 225 75 270 Influence Decreases 2779 | 10 219 88 132 . 19 124 669 476 374 668 Entered New Map 200 | . . . 69 . . . 39 48 44 . Time Decay 1798 | 10 219 68 63 . 19 124 329 318 180 468 Lost Part 440 | . . 20 . . . . 110 110 . 200 Lost Ally 80 | . . . . . . . 80 . . . Purge Threat 261 | . . . . . . . 111 . 150 . Squads Dispatched 24 | . . . . . 2 4 3 4 4 7 Investigation 10 | . . . . . 1 3 1 1 2 2 Extermination 9 | . . . . . 1 1 . 3 2 2 Reinforcement 5 | . . . . . . . 2 . . 3 Assault . | . . . . . . . . . . . Garrison . | . . . . . . . . . . . Intercept . | . . . . . . . . . . . Searches Triggered . | . . . . . . . . . . . Construction Impeded 1 | . . . . . . . 1 . . . Haulers Reinforced . | . . . . . . . . . . . Active Scanning Responses . | . . . . . . . . . . . Cargo Convoy Interrupts . | . . . . . . . . . . . Stealth | -11 -10 -10 -7 -7 -5 -4 -4 -3 -3 -3 --------- Run | Yrd Mat Sub Rec Scr Fac Fac Ext Res Qua Frg Distress Signals 9 | . 3 . . . . . 1 2 . 3 Communications Jammed . | . . . . . . . . . . . Distress Signals . | . . . . . . . . . . . Times Spotted 239 | . 13 15 . . 2 4 20 36 12 137 Peak Tracking Total 15 | . 4 6 . . 1 2 6 15 5 12 Tactical Retreats 28 | . 1 1 . . . . 3 9 3 11 Traps | -11 -10 -10 -7 -7 -5 -4 -4 -3 -3 -3 ------- Run | Yrd Mat Sub Rec Scr Fac Fac Ext Res Qua Frg Traps Triggered 4 | . 2 . . . . . . . . 2 Indirectly . | . . . . . . . . . . . Trap Hack Attempts . | . . . . . . . . . . . Triggered . | . . . . . . . . . . . Disarmed . | . . . . . . . . . . . Reprogrammed . | . . . . . . . . . . . Reused 2 | . . . . . . 1 . 1 . . Traps Extracted . | . . . . . . . . . . . Installed 2 | . . . . . . 1 . 1 . . Triggered 2 | . . . . . . 1 . 1 . . Most Traps Carried 3 | . . . . 3 3 3 2 1 . . Machines | -11 -10 -10 -7 -7 -5 -4 -4 -3 -3 -3 ---------- Run | Yrd Mat Sub Rec Scr Fac Fac Ext Res Qua Frg Machines Disabled 28 | . . 5 . . . 3 3 1 3 13 Max in Single Turn 5 | . . 3 . . . 1 2 1 1 5 Machines Repaired . | . . . . . . . . . . . Machines Dismantled . | . . . . . . . . . . . Machines Sabotaged . | . . . . . . . . . . . Overloaded Fab Kills . | . . . . . . . . . . . Hacking | -11 -10 -10 -7 -7 -5 -4 -4 -3 -3 -3 --------- Run | Yrd Mat Sub Rec Scr Fac Fac Ext Res Qua Frg Machines Accessed 53 | . 7 4 3 3 1 6 7 7 9 6 Terminals 33 | . 6 . 1 . . 3 7 6 6 4 Fabricators 1 | . . . . . . 1 . . . . Repair Stations 2 | . 1 . . . . . . . 1 . Recycling Units 5 | . . . . . 1 1 . 1 . 2 Scanalyzers 1 | . . . . . . . . . 1 . Garrison Access 2 | . . . . . . 1 . . 1 . Total Hacks 134 | . 25 8 13 11 1 13 19 12 21 11 Successful 95 | . 18 8 12 11 1 7 10 9 11 8 Failed 39 | . 7 . 1 . . 6 9 3 10 3 Catastrophic 11 | . 1 . . . . 1 3 1 4 1 Database Lockouts . | . . . . . . . . . . . Manual 64 | . 19 . . . 1 7 13 12 8 4 Terminals 82 | . 20 . 1 . . 6 19 11 16 9 Fabricators 3 | . . . . . . 3 . . . . Repair Stations 7 | . 5 . . . . . . . 2 . Recycling Units 5 | . . . . . 1 1 . 1 . 2 Scanalyzers 1 | . . . . . . . . . 1 . Garrison Access 5 | . . . . . . 3 . . 2 . Terminal Hacks 56 | . 5 8 12 11 . 1 5 2 6 6 Record 25 | . 1 5 11 3 . . . . 2 3 Robot Analysis 10 | . 2 . . 7 . . . . . 1 Prototype ID Bank 3 | . 2 . . . . . . . 1 . Open Door 5 | . . 1 . . . 1 3 . . . Branch Access Points 3 | . . . . . . . . 1 2 . Fabricator Index 1 | . . . . . . . . 1 . . Recycling Unit Index 1 | . . . . . . . . . . 1 Unreport Threat 2 | . . . . . . . 1 . 1 . Locate Traps 1 | . . . . . . . 1 . . . Zone Layout 1 | . . . . . . . . . . 1 Proto ID Catalog 2 | . . 1 . 1 . . . . . . Release Object 2 | . . 1 1 . . . . . . . Fabricator Hacks 1 | . . . . . . 1 . . . . Load Schematic 1 | . . . . . . 1 . . . . Repair Station Hacks 6 | . 4 . . . . . . . 2 . Scan Component 3 | . 2 . . . . . . . 1 . Repair 3 | . 2 . . . . . . . 1 . Recycling Unit Hacks . | . . . . . . . . . . . Scanalyzer 1 | . . . . . . . . . 1 . Insert Component 1 | . . . . . . . . . 1 . Garrison Access Hacks 1 | . . . . . . 1 . . . . Unlock Access 1 | . . . . . . 1 . . . . Unauthorized Hacks 30 | . 9 . . . 1 4 5 7 2 2 Terminals 24 | . 9 . . . . 2 5 6 2 . Botnet 15 | . 3 . . . . 2 4 4 2 . Operators 1 | . 1 . . . . . . . . . Skim 8 | . 5 . . . . . 1 2 . . Fabricators 1 | . . . . . . 1 . . . . Recompile 1 | . . . . . . 1 . . . . Repair Stations 5 | . . . . . 1 1 . 1 . 2 Recycling Units . | . . . . . . . . . . . Fedlink 5 | . . . . . 1 1 . 1 . 2 Scanalyzers . | . . . . . . . . . . . Garrison Access . | . . . . . . . . . . . Data Cores Recovered 2 | . . . . . . . . . 2 . Used 1 | . . . . . . . . . 1 . Hacking Detections 34 | . 6 . 1 . . 5 6 5 8 3 Full Trace Events 3 | . . . . . . . 1 . 2 . Feedback Events . | . . . . . . . . . . . Feedback Blocked . | . . . . . . . . . . . Robot Schematics Acquired . | . . . . . . . . . . . Robots Built . | . . . . . . . . . . . Authchips . | . . . . . . . . . . . Time . | . . . . . . . . . . . Total Robot Build Rating . | . . . . . . . . . . . Part Schematics Acquired 35 | . . . . . 2 1 10 6 4 12 Parts Built . | . . . . . . . . . . . Authchips . | . . . . . . . . . . . Time . | . . . . . . . . . . . Total Part Build Rating . | . . . . . . . . . . . Parts Repaired 3 | . 2 . . . . . . . 1 . Time 66 | . 52 . . . . . . . 14 . Parts Recycled . | . . . . . . . . . . . Recycled Matter . | . . . . . . . . . . . Retrieved Matter . | . . . . . . . . . . . Retrieved Components . | . . . . . . . . . . . Parts Scanalyzed . | . . . . . . . . . . . Part Schematics Acquired . | . . . . . . . . . . . Parts Damaged . | . . . . . . . . . . . Bothacking | -11 -10 -10 -7 -7 -5 -4 -4 -3 -3 -3 ------------ Run | Yrd Mat Sub Rec Scr Fac Fac Ext Res Qua Frg Used RIF Installer . | . . . . . . . . . . . Robots Hacked . | . . . . . . . . . . . Non-combat . | . . . . . . . . . . . Combat . | . . . . . . . . . . . Robot Hacks Applied . | . . . . . . . . . . . Relay Couplers Released . | . . . . . . . . . . . Fabnet Peak Effective % . | . . . . . . . . . . . Robots Rewired 3 | . . . . . . . 3 . . . Allies Hacked . | . . . . . . . . . . . Hacks Repelled . | . . . . . . . . . . . Allies | -11 -10 -10 -7 -7 -5 -4 -4 -3 -3 -3 -------- Run | Yrd Mat Sub Rec Scr Fac Fac Ext Res Qua Frg Total Allies 6 | . . . . . . . 6 . . . Largest Group 4 | . . . . . . . 4 . . . Highest-Rated Group 272 | . . . . . . . 272 . . . Highest-Rated Ally 159 | . . . . . . . 159 . . . Total Orders . | . . . . . . . . . . . Ally Attacks 55 | . . . . . . . 55 . . . Total Damage 2231 | . . . . . . . 2231 . . . Kills 14 | . . . . . . . 14 . . . Allies Corrupted . | . . . . . . . . . . . Allies Melted . | . . . . . . . . . . . Intel | -11 -10 -10 -7 -7 -5 -4 -4 -3 -3 -3 ------- Run | Yrd Mat Sub Rec Scr Fac Fac Ext Res Qua Frg Active Infowar (turns) 4712 | 33 772 79 . . 361 610 951 381 386 1139 Optics 753 | . . . . . . . . . . 753 Sensors 2501 | . . . . . . 459 951 278 386 427 Terrain 1143 | . . . . . 361 596 83 103 . . Seismic 884 | 33 772 79 . . . . . . . . Cloaking 1279 | . . . . . 1 382 896 . . . Jamming 2 | . . . . . . . . 2 . . Robot Analysis Total 10 | . 2 . . 7 . . . . . 1 Derelict Logs Recovered 5 | . . 3 . 2 . . . . . . Drone Launches . | . . . . . . . . . . . Drone Recoveries . | . . . . . . . . . . . Exploration | -11 -10 -10 -7 -7 -5 -4 -4 -3 -3 -3 ------------- Run | Yrd Mat Sub Rec Scr Fac Fac Ext Res Qua Frg Turns Passed 10471 | 205 772 2629 175 2278 414 610 960 707 388 1333 Spaces Moved 7726 | 87 386 1182 49 1417 240 416 499 1017 785 1648 Core 506 | 4 1 . . . . . 6 495 . . Treads 2557 | 83 385 1179 49 219 . 149 493 . . . Legs 515 | . . . . . . . . . . 515 Wheels 1708 | . . 3 . 1198 240 267 . . . . Hover 83 | . . . . . . . . 83 . . Flight 2357 | . . . . . . . . 439 785 1133 Fastest Speed 15 | 50 150 120 360 110 105 105 50 35 32 15 Average Speed 114 | 154 159 200 360 158 139 124 156 51 33 51 Slowest Speed 360 | 160 160 360 360 360 140 158 225 125 39 170 Overloaded Moves 38 | . . . . . . . . . . 38 Propulsion Burnouts . | . . . . . . . . . . . Robots Hopped 11 | . . . . . . . . 2 . 9 Potential Cave-ins 3 | . . . . . 3 . . . . . Cave-ins Triggered . | . . . . . . . . . . . Teleports 3 | . . . . . . . . . 1 2 Exploration Rate (%) 45 | 7 66 81 12 90 5 8 49 44 83 53 Regions Visited 10 Branch Regions 6 Pre-discovered Areas 5 | . . 4 . . . 1 . . . . Known Exits Taken 5 | . 1 . . . . 1 1 1 1 . Unknown Exits Taken 5 | 1 . 1 1 1 1 . . . . . Scrap Searched 6 | . . 2 . 4 . . . . . . Spaces Dug 69 | . . 2 . . 5 5 4 17 14 22 Terrain Destroyed 302 | . . 86 . . 10 48 87 34 14 23 Melee 62 | . . . . . . 5 4 17 14 22 Projectile 16 | . . 2 . . 10 1 2 . . 1 AOE 224 | . . 84 . . . 42 81 17 . . Terrain Rammed 1 | . . . . . . . . . . 1 Walls Destroyed . | . . . . . . . . . . . Machines Disabled . | . . . . . . . . . . . Actions | -11 -10 -10 -7 -7 -5 -4 -4 -3 -3 -3 --------- Run | Yrd Mat Sub Rec Scr Fac Fac Ext Res Qua Frg Total 8840 | 119 493 1324 50 1449 286 492 619 1151 859 1998 Wait 384 | . 56 14 . 2 2 51 25 64 24 146 Move 7695 | 86 385 1181 48 1416 239 415 498 1012 784 1631 Hop 10 | . . . . . . . . 2 . 8 Pick Up 73 | 5 10 12 1 20 6 2 3 3 5 6 Fast Attach 104 | 7 9 4 . 1 4 5 1 24 8 41 Attach 33 | . . 6 . 2 6 1 3 3 3 9 Detach 11 | . . . . 1 1 . . 2 . 7 Swap 46 | . 2 19 . 1 1 2 8 2 3 8 Drop 94 | . 4 28 1 6 1 5 8 10 9 22 Fire 201 | 16 21 60 . . 26 3 22 1 . 52 Melee 86 | . . . . . . 7 11 22 23 23 Ram 6 | . . . . . . . . 5 . 1 Kick 2 | . . . . . . . . . . 2 Crush 11 | 5 6 . . . . . . . . . Escape Stasis 28 | . . . . . . . . . . 28 Rewire 41 | . . . . . . . 40 . . 1 Trap 2 | . . . . . . 1 . 1 . . Miscellaneous 13 | . . . . . . . . . . 13 Route ------- -11/Scrapyard -10/Materials (discovered 4 exits: [*Mat x2] / [*Min] / *Sub) -10/Subcaves (discovered 3 exits: [*Mat x2] / *Rec) -7/Recycling -7/Scraptown (discovered 2 exits: *Fac x2) -5/Factory -4/Factory (discovered 2 exits: *Ext / Gar) -4/Extension -3/Research (discovered 3 exits: Res / *Qua x2) -3/Quarantine (discovered 2 exits: *Sec / *Frg) -3/Protoforge History --------- Turn | Location | Event 41 | -11/Scrapyard | Discovered new exit (range 14) 206 | -11/Scrapyard | Entered Materials 302 | -10/Materials | Build established: Mutant 364 | -10/Materials | Discovered new exit (range 13) 482 | -10/Materials | Repaired Lgt. Treads 510 | -10/Materials | Repaired Lgt. Treads 569 | -10/Materials | Discovered new exit (range 5) 779 | -10/Materials | Discovered new exit (range 12) 829 | -10/Materials | Learned Storage trap positions 894 | -10/Materials | Identified exit to Subcaves 978 | -10/Materials | Entered Subcaves 1070 | -10/Subcaves | Discovered new exit (range 12) 1694 | -10/Subcaves | Build established: Scavenger-Mutant 2195 | -10/Subcaves | Build established: Mutant 2255 | -10/Subcaves | Learned location of Zion (-6) 2491 | -10/Subcaves | Discovered new exit (range 5) 2517 | -10/Subcaves | A swath of the cavern ceiling suddenly collapsed 2539 | -10/Subcaves | Learned Materials emergency access door positions 2618 | -10/Subcaves | Shifting Twisted Machinery released Sub. Power Source 2622 | -10/Subcaves | Shifting Twisted Machinery released Spk. Treads 2882 | -10/Subcaves | Visited Clippyterm 2887 | -10/Subcaves | Learned location of Deep Caves (-6) 2887 | -10/Subcaves | Learned location of Extension (-4) 3199 | -10/Subcaves | Visited 4L-MR0's lab 3220 | -10/Subcaves | Found Gun Armor 3407 | -10/Subcaves | Attached Gun Armor, gained temporary slots: Weapon x2 3425 | -10/Subcaves | Found SUBCON Basin 3556 | -10/Subcaves | Discovered new exit (range 15) 3607 | -10/Subcaves | Entered Recycling 3669 | -7/Recycling | Scanned before Scraplab entrance 3710 | -7/Recycling | Build established: Gunner 3719 | -7/Recycling | Entered Scraplab 3778 | -7/Recycling | Discovered new exit (range 2) 3782 | -7/Recycling | Entered Scraptown 4304 | -7/Scraptown | Heard Great Nut preacher, LISTEN AND RECITE! 4443 | -7/Scraptown | Received an X-ray algorithm 4516 | -7/Scraptown | Scanned Subdweller tech in exchange for log data 4519 | -7/Scraptown | Learned location of 1 exit from Research 4520 | -7/Scraptown | Learned Research stockpile data 4535 | -7/Scraptown | Discovered new exit (range 13) 4647 | -7/Scraptown | Visited CR-KLE's Repair Center 4659 | -7/Scraptown | CR-KLE repaired 6 parts 4687 | -7/Scraptown | Visited Assassins FH 4719 | -7/Scraptown | Visited Cyclists 4739 | -7/Scraptown | Visited SPCMW 4771 | -7/Scraptown | Visited UFD Registry 4771 | -7/Scraptown | Registered with UFD as "Quantumback" 4794 | -7/Scraptown | Visited Comm Corps 4838 | -7/Scraptown | Visited Shadow of the Wyrm 5058 | -7/Scraptown | Visited Science Guys 5126 | -7/Scraptown | Visited Scrapoid Research Area 5183 | -7/Scraptown | Visited Chapter 10 5219 | -7/Scraptown | Visited Derelict Rescue Squad 5234 | -7/Scraptown | Found DRS Beacon 5251 | -7/Scraptown | Visited Cartography Club 5453 | -7/Scraptown | Discovered new exit (range 3) 5522 | -7/Scraptown | Visited Analyses Database 5566 | -7/Scraptown | Visited Research Penetration Think Tank 5596 | -7/Scraptown | Visited LU-1G1's Boring Crew 5622 | -7/Scraptown | Visited Infowarlord's Domain 5633 | -7/Scraptown | Found Exp. Terrain Scanner 5657 | -7/Scraptown | Visited Curators Association 5949 | -7/Scraptown | Met Optimus 5949 | -7/Scraptown | Accepted into 0bPrime 6060 | -7/Scraptown | Entered Factory 6060 | -5/Factory | Evolved 10 slots: Propulsion x2, Utility x8 6189 | -5/Factory | Loaded intel: 8 recycling unit locations 6354 | -5/Factory | Discovered new exit (range 20) 6395 | -5/Factory | Build established: Derelict-Skirmisher 6400 | -5/Factory | Tech Extrapolator generated special schematic: Deep Structural Scanner 6474 | -5/Factory | Entered another Factory area 6474 | -4/Factory | Evolved 2 slots: Power x1, Utility x1 6528 | -4/Factory | Identified exit to Garrison 6562 | -4/Factory | Discovered new exit (range 13) 6600 | -4/Factory | Loaded intel: 8 recycling unit locations 6600 | -4/Factory | Learned location of Protoforge (-3) 6790 | -4/Factory | Noticed UFD Elites at a Recycling Unit 6924 | -4/Factory | Build established: Assassin 6955 | -4/Factory | Identified exit to Extension 7084 | -4/Factory | Entered Extension 7100 | -4/Extension | Tech Extrapolator generated special schematic: Wartreads 7417 | -4/Extension | Rescued A7 7460 | -4/Extension | Build established: Skirmisher 7563 | -4/Extension | Rescued a captive Derelict 7563 | -4/Extension | Rescued a captive Derelict 7969 | -4/Extension | Spotted B-86 Titan 8007 | -4/Extension | Allies destroyed B-86 Titan 8012 | -4/Extension | Spotted B-86 Titan 8040 | -4/Extension | Discovered new exit (range 5) 8043 | -4/Extension | Tech Extrapolator generated special schematic: Energy Deflector 8043 | -4/Extension | Identified exit to Research 8044 | -4/Extension | Entered Research 8044 | -3/Research | Evolved 2 slots: Propulsion x2 8045 | -3/Research | Identified exit to Research 8066 | -3/Research | Lost 11 parts (1p4n3u3w) 8122 | -3/Research | Spotted B-86 Titan 8146 | -3/Research | Spotted B-86 Titan 8270 | -3/Research | Found Prototype Device 8270 | -3/Research | Identified Adv. EM Shield 8276 | -3/Research | Spotted B-90 Cyclops 8347 | -3/Research | Loaded intel: 5 recycling unit locations 8396 | -3/Research | Lost 8 parts (2n4u2w) 8719 | -3/Research | Identified exit to Quarantine 8751 | -3/Research | Entered Quarantine 8754 | -3/Quarantine | Spotted Alpha 7 8769 | -3/Quarantine | Cryocooling Duct disabled 8784 | -3/Quarantine | Ambient heat levels rising (+20) 8784 | -3/Quarantine | Non-combat units ordered to evacuate 8786 | -3/Quarantine | Found Prototype Launcher 8789 | -3/Quarantine | Identified Adv. Micro-nuke Launcher 8820 | -3/Quarantine | Repaired Greatsword 8827 | -3/Quarantine | Found Alien Artifact 8833 | -3/Quarantine | Found Alien Artifact 8833 | -3/Quarantine | Identified Dimensional Node Initializer 8833 | -3/Quarantine | Initialized slip node 8899 | -3/Quarantine | Identified Transdimensional Reconstructor 8899 | -3/Quarantine | Warped through subspace to slip node 8900 | -3/Quarantine | Core integrity fell below 50% 8906 | -3/Quarantine | Found Transdimensional Reconstructor 8910 | -3/Quarantine | Found Transdimensional Reconstructor 9059 | -3/Quarantine | Found Exp. Signal Interpreter 9111 | -3/Quarantine | Spotted Fortress 9136 | -3/Quarantine | Discovered new exit (range 5) 9136 | -3/Quarantine | Discovered new exit (range 6) 9137 | -3/Quarantine | Identified exit to Section 7 9138 | -3/Quarantine | Identified exit to Protoforge 9139 | -3/Quarantine | Entered Protoforge 9207 | -3/Protoforge | Spotted Hotshot 9207 | -3/Protoforge | Spotted Hotshot 9208 | -3/Protoforge | Superfortress began startup sequence 9210 | -3/Protoforge | Spotted Hotshot 9220 | -3/Protoforge | Spotted B-86 Titan 9283 | -3/Protoforge | Build established: Hacker-Gladiator 9361 | -3/Protoforge | Tech Extrapolator generated special schematic: Telecube 9416 | -3/Protoforge | Found Prototype Slashing Weapon 9416 | -3/Protoforge | Identified Exp. Terror Saw 9417 | -3/Protoforge | Found Exp. Terror Saw 9433 | -3/Protoforge | Found Prototype Energy Gun 9433 | -3/Protoforge | Identified Cep. Variable Chargecaster 9446 | -3/Protoforge | Found Prototype Protection 9446 | -3/Protoforge | Identified Cep. Core Shell 9487 | -3/Protoforge | Warped through subspace 9487 | -3/Protoforge | Spotted Decapitator 9487 | -3/Protoforge | Spotted Decapitator 9487 | -3/Protoforge | Spotted Decapitator 9496 | -3/Protoforge | Spotted V717-b 9496 | -3/Protoforge | Spotted V865-v 9513 | -3/Protoforge | Found Prototype Hackware 9513 | -3/Protoforge | Identified Cep. Network Penetrator 9515 | -3/Protoforge | Found Cep. Network Penetrator 9534 | -3/Protoforge | System corruption reached 10% 9555 | -3/Protoforge | Spotted V564-f 9555 | -3/Protoforge | Spotted V976-w 9555 | -3/Protoforge | Spotted V768-c 9555 | -3/Protoforge | Spotted V275-g 9559 | -3/Protoforge | Core integrity fell below 20% 9559 | -3/Protoforge | Warped through subspace 9576 | -3/Protoforge | Spotted V398-w 9576 | -3/Protoforge | Spotted V137-k 9590 | -3/Protoforge | Lost 3 parts (1n2u) 9621 | -3/Protoforge | Found Cep. Core Shell 9653 | -3/Protoforge | Spotted EXE-6 9653 | -3/Protoforge | Spotted EXE-6 9663 | -3/Protoforge | UFD initiated attack on Protoforge 9663 | -3/Protoforge | Loaded intel: 3 recycling unit locations 9701 | -3/Protoforge | Optimus greeted in Protoforge 9710 | -3/Protoforge | Found Prototype Processor 9710 | -3/Protoforge | Identified Exp. Core Analyzer 9711 | -3/Protoforge | Found Prototype Processor 9711 | -3/Protoforge | Identified Exp. Armor Integrity Analyzer 9714 | -3/Protoforge | Found Prototype Ballistic Gun 9714 | -3/Protoforge | Identified Cep. XC Strikerail 9716 | -3/Protoforge | Found Cep. XC Strikerail 9732 | -3/Protoforge | Lost 4 allies 9738 | -3/Protoforge | Found Prototype Device 9738 | -3/Protoforge | Identified Exp. Kinecellerator 9815 | -3/Protoforge | Spotted AP7-3 9815 | -3/Protoforge | Spotted Overlord 9820 | -3/Protoforge | Spotted AP7-3 9830 | -3/Protoforge | P-80 Master assimilated allied YC-MRN(j) 9834 | -3/Protoforge | Met 7R-MNS 9843 | -3/Protoforge | P-80 Master assimilated allied EN-4Z6(j) 9871 | -3/Protoforge | Spotted Striker 9872 | -3/Protoforge | Lost 16 allies 9872 | -3/Protoforge | Spotted Striker 9882 | -3/Protoforge | Spotted Striker 9885 | -3/Protoforge | Spotted Striker 9898 | -3/Protoforge | Lost 7 parts (1p1n3u2w) 9928 | -3/Protoforge | Spotted Executioner 9944 | -3/Protoforge | Spotted Executioner 9971 | -3/Protoforge | Found Exp. Core Analyzer 9973 | -3/Protoforge | Spotted Hotshot 9974 | -3/Protoforge | Found Prototype Processor 9974 | -3/Protoforge | Identified Exp. Targeting Computer 9975 | -3/Protoforge | Spotted Hotshot 9986 | -3/Protoforge | Spotted Striker 9989 | -3/Protoforge | Spotted Striker 9990 | -3/Protoforge | Spotted Hotshot 10015 | -3/Protoforge | Build established: Wizard-Mutant 10055 | -3/Protoforge | Spotted Hotshot 10056 | -3/Protoforge | Spotted Hotshot 10057 | -3/Protoforge | Spotted Hotshot 10057 | -3/Protoforge | Spotted Striker 10057 | -3/Protoforge | Spotted Striker 10057 | -3/Protoforge | Spotted Striker 10057 | -3/Protoforge | Spotted Striker 10155 | -3/Protoforge | Lost 41 allies 10155 | -3/Protoforge | Spotted SKR-2 10174 | -3/Protoforge | Spotted SKR-2 10181 | -3/Protoforge | Forge Plexus network access discovered 10197 | -3/Protoforge | Spotted Decapitator 10198 | -3/Protoforge | Spotted Decapitator 10199 | -3/Protoforge | Spotted Decapitator 10200 | -3/Protoforge | Spotted Decapitator 10201 | -3/Protoforge | Spotted Decapitator 10206 | -3/Protoforge | Destroyed Decapitator 10209 | -3/Protoforge | Destroyed Decapitator 10212 | -3/Protoforge | Destroyed Decapitator 10224 | -3/Protoforge | Destroyed Decapitator 10231 | -3/Protoforge | Spotted Executioner 10235 | -3/Protoforge | Spotted Striker 10237 | -3/Protoforge | Lost 13 allies 10237 | -3/Protoforge | Spotted Striker 10278 | -3/Protoforge | Found UFD Drillbomb 10291 | -3/Protoforge | Found UFD Drillbomb 10356 | -3/Protoforge | P-80 Master assimilated allied 03F42-D 10392 | -3/Protoforge | P-80 Master assimilated allied 03F05-K 10430 | -3/Protoforge | Spotted Striker 10441 | -3/Protoforge | Spotted Executioner 10445 | -3/Protoforge | Destroyed Striker 10445 | -3/Protoforge | Destroyed Executioner 10451 | -3/Protoforge | Spotted Executioner 10462 | -3/Protoforge | Spotted Executioner 10472 | -3/Protoforge | Destroyed by Executioner with Helical Railgun Last Messages --------------- 10467_ N-04 Retriever collects Flexi-carbon Leg. 10468_ N-04 Retriever inserts Xenon Bombardment Thruster into Forge Plexus. 10468_ N-04 Retriever collects Corrupted Ovr. Coil Gun. 10468_ Penetrated by Slug. 10469_ N-04 Retriever inserts Imp. Antigrav System into Forge Plexus. 10469_ Slug penetrates L-61 Swordsman. 10469_ Slug penetrates S-43 Plague. 10469_ S-43 Plague suffers critical hit (Destroy). 10469_ S-43 Plague destroyed. 10469_ Slug penetrates Executioner. 10469_ N-04 Retriever collects Lgt. Antimatter Reactor. 10469_ N-04 Retriever collects Imp. Deuterium Engine. 10469_ N-04 Retriever inserts Mak. Medium Armor Plating into Forge Plexus. 10470_ N-04 Retriever inserts 0bPrime Scrap Suit into Forge Plexus. 10471_ N-04 Retriever collects Mak. Coolant Network. 10471_ N-04 Retriever collects Corrupted 0bPrime Scrap Suit. 10471_ N-04 Retriever inserts Corrupted Med. Treads into Forge Plexus. 10472_ Penetrated by Slug. 10472_ Slug penetrates Reinforced Barrier. Map ----- +----------------------------------------------------+ | " # #""" ##?????????# " " "" """" " | | # #""" ##?????????# """"" "" "" | | + # ##?????????# " "" " " | | ### #########?????????# """" "" """" | | ### ####?####?????????# """" "" """"" | | ##?########?????# " """""" | | ###########?????# """"""" | | # ##?????# """""""" | | # ! # ?????# % """"""""" | | """" # % " #????# [ % """""""""" | | """" #""" & # ????# = = % """""""""" | | """" #""" " ???# % % % " """""""""" | | "" " # """ " #### !%= """"""""""" | | # " "%!! =#= [ """"""""""" | | """ "[ & " %=*!# % """"""""""" | | " *= % % " =! #& """"""""""" | | " !""%#"""""&"%%% # % % n n""""""""""" | | % % % %%%%%%%=%%% & %% """"""""""" | | % !*=% %%%&%%%%!%% %%%%%% % % """"""""""" | | ! *[%%!!%%%% %!%& %!n% [ n %%""""""""""" | | "" =%*==!=%%[="""##=% #E%n !% % % """"""""""" | | ## [###!###### ##%=%%#%g% != !% """""""""" | | ##???#???????##??# ####=%*!= %%%!= % """""""""" | | ##???????????##??##???#=*== %% ==% %%"""""""""" | | ##???#???????##???????#=plE%%%" % %!% n """"""""" | | ##???##########???????#]&@= %%%% ! %%"""""""" | | ##???##########???????#%!% %% %%"" %%""""""" | | #?????#########???????# "" % %%%%" %""%& """""" | | #????????????##???????# "" % "% "% %% """"" | | ?????????????########## "" "%"%%% %% % % """" | | #????????????########## " " %% % % " | | #?????####???#???????##% " %%"%%% % | | ###?######???#???????##% " " """ % % """"% | | ????????##???#???????## " """ % | | ????????##???#???????## %% %% % | | ????????##???#???????## " " " % E""% "% | | ????????##???????????## " " """ | | ????????##???#???????## " " " ""% " | | ????????####?#???????## "" %" " " | | ????????####?#???????## " "" | | ????????####?#???????## "" " " """"" | | ????????####?#???????## "" " " " | | ############?########## " % %"" | | ##########???????????## "" % | | ????????##???????????## "" "% " " " " | | ?????#####???????????## """ " " " % | | ?????#####???????????######### ################## | | ?????##??????????????##??????####????????????????? | | ###??##?##???????????##??????????????????????????? | | ###??##?##???????????##??????????????????????????? | +----------------------------------------------------+ Best States ------------- Heat Dissipation 72 Energy Generation 41 Energy Capacity 1650 Matter Stores 300 Matter Capacity 300 Sight Range 23 Robot Scan Range 18 Terrain Scan Range 30 Terrain Scan Density 335 Jamming Range 16 Cloak Strength 3 Armor Coverage 600 Resistance: EM 25 Core Shielding 90 Propulsion Shielding 66 Weapon Shielding 90 Evasion (%) 77 Targeting Accuracy 12 Melee Accuracy 8 Core Analysis 12 Armor Integrity Analysis 50 Recoil Reduction 3 Kinecelleration 66 Salvage Targeting 5 Offensive Hacking 112 Defensive Hacking 14 Authchip Count 1 Item Schematics ----------------- Battle Cannon | -5/Factory | Extrapolated Deep Structural Scanner | -5/Factory | Extrapolated Mak. Terrain Scan Processor | -4/Factory | Extrapolated Wartreads | -4/Extension | Extrapolated Mak. Coolant Network | -4/Extension | Extrapolated Mak. Laser | -4/Extension | Extrapolated Mak. Cloaking Device | -4/Extension | Extrapolated Mak. Terrain Scanner | -4/Extension | Extrapolated Mak. Medium Armor Plating | -4/Extension | Extrapolated Mak. Ablative Armor | -4/Extension | Extrapolated Mak. Hacking Suite | -4/Extension | Extrapolated Mak. System Shield | -4/Extension | Extrapolated Energy Deflector | -4/Extension | Extrapolated Mak. Power Source | -3/Research | Extrapolated 0b10 Decoder Chip [Skirmisher] | -3/Research | Extrapolated Tactical Coordination Suite | -3/Research | Extrapolated Mak. Transmission Jammer | -3/Research | Extrapolated Mak. Heavy Armor Plating | -3/Research | Extrapolated Mak. Thermal Plating | -3/Research | Extrapolated Mak. Sensor Array | -3/Quarantine | Extrapolated 0b10 Decoder Chip [Generic] | -3/Quarantine | Extrapolated 0b10 Decoder Chip [Scout] | -3/Quarantine | Extrapolated 0b10 Decoder Chip [Looter] | -3/Quarantine | Extrapolated Mak. Targeting Computer | -3/Protoforge | Extrapolated Mak. System Restoration Module | -3/Protoforge | Extrapolated Telecube | -3/Protoforge | Extrapolated Mak. Salvage Targeting Computer | -3/Protoforge | Extrapolated Mak. Core Shielding | -3/Protoforge | Extrapolated Multireflex Exoskeleton | -3/Protoforge | Extrapolated Mak. Propulsion Shielding | -3/Protoforge | Extrapolated Mak. Hammer | -3/Protoforge | Extrapolated Enh. Multireflex Exoskeleton | -3/Protoforge | Extrapolated Mak. Weapon Shielding | -3/Protoforge | Extrapolated Spk. Medium Treads | -3/Protoforge | Extrapolated Spk. Heavy Treads | -3/Protoforge | Extrapolated Robot Schematics ------------------ None Fabricated ------------ Nothing Repaired ---------- Lgt. Treads | 29% | -10/Materials Lgt. Treads | 65% | -10/Materials Greatsword | 67% | -3/Quarantine Alien Tech Used ----------------- Dimensional Node Initializer Transdimensional Reconstructor Achievements -------------- None Challenges ------------ None Game ------ Seed StrikeNeutronAutogun Manual? 0 Play Time 01:42:08 Cumulative 795.7 hours Start 2025.05.06 @ 15:38:35 End 2025.05.06 @ 17:26:10 Sessions 1 Manual Loads 0 Difficulty Rogue Special Mode None Game No. 798 Rogue 798 Adventurer 0 Explorer 0 Win Type - Total 39 Types 14/4/11/2/0/0/5/2/1/0 Lore% 95 Gallery% 86 Achievement% 84 Wizard Run 0 Options --------- Layout 0 ASCII 0 Keyboard 0 Movement Numpad Keybinds 0 Fullscreen 1 Font 18/Smallcaps Map View 76x50 Zoom Use 0% Tactical HUD 1 Map Filters NONE Filters NONE Steam 1 RUN: 25483257-b003-4dcf-8781-300952c4754f